fUST/lending_fUST_20240921
["ID","MTS","AMOUNT","RATE_DAILY","PERIOD"]
[338651991,1726848091874,200.0,0.00018703,120]
[338652012,1726848211380,200.0,0.00018713,120]
[338652057,1726848632028,-3000.0,0.00014876,2]
[338652058,1726848632041,-250.000002,0.00014941,2]
[338652059,1726848632051,-160.0,0.00015095,3]
[338652060,1726848632060,-160.0,0.00015302,4]
[338652061,1726848632070,-160.0,0.00015508,5]
[338652062,1726848632079,-153.80490095,0.00015715,6]
[338652063,1726848632091,-6.19509905,0.00015715,6]
[338652064,1726848632100,-446.082188,0.00015838,2]
[338652065,1726848632109,-210.16290076,0.00015842,2]
[338652067,1726848638142,-235.91928724,0.00015842,2]
[338652068,1726848638152,-446.082188,0.00015847,2]
[338652069,1726848638166,-446.082188,0.00015851,2]
[338652070,1726848638176,-446.082188,0.00015855,2]
[338652071,1726848638186,-446.082188,0.00015859,2]
[338652072,1726848638196,-446.082188,0.00015863,2]
[338652073,1726848638205,-446.082188,0.00015867,2]
[338652074,1726848638215,-446.082188,0.00015872,2]
[338652075,1726848638225,-446.082188,0.00015876,2]
[338652076,1726848638235,-300.0,0.00015876,2]
[338652077,1726848638246,-300.0,0.00015876,2]
[338652078,1726848638256,-4230.82419509,0.00015877,2]
[338652080,1726848638266,-195.70785096,0.00015878,2]
[338652081,1726848638277,-446.082188,0.0001588,2]
[338652082,1726848638289,-446.082188,0.00015884,2]
[338652083,1726848638300,-446.082188,0.00015888,2]
[338652084,1726848638310,-446.082188,0.00015892,2]
[338652085,1726848638321,-446.082188,0.00015897,2]
[338652086,1726848638332,-446.082188,0.00015901,2]
[338652088,1726848638341,-446.082188,0.00015905,2]
[338652090,1726848638352,-446.082188,0.00015909,2]
[338652092,1726848638362,-446.082188,0.00015913,2]
[338652094,1726848638372,-446.082188,0.00015917,2]
[338652096,1726848638381,-160.0,0.00015921,7]
[338652098,1726848638391,-194.00059327,0.00015921,5]
[338652100,1726848638402,-646.66,0.00015976,2]
[338652102,1726848638412,-1286.47065735,0.00015976,2]
[338652103,1726848638425,-832.02934265,0.00015976,2]
[338652104,1726848638437,-254.86,0.00015976,2]
[338652105,1726848638449,-500.0,0.00015976,2]
[338652106,1726848638459,-154.92208582,0.00015976,2]
[338652107,1726848638469,-544.7,0.00015976,2]
[338652108,1726848638479,-283.86907839,0.00015976,2]
[338652109,1726848638489,-740.22,0.00015976,2]
[338652110,1726848638499,-500.0,0.00015976,2]
[338652111,1726848638509,-500.0,0.00015976,2]
[338652112,1726848638519,-287.18125232,0.00015976,2]
[338652113,1726848638529,-500.0,0.00015976,2]
[338652114,1726848638539,-500.0,0.00015976,2]
[338652115,1726848638549,-22853.83031852,0.00015977,2]
[338652116,1726848638561,-5783.53136065,0.00015977,2]
[338652121,1726848640084,-24603.74832083,0.00015977,2]
[338652122,1726848640094,-6989.05,0.00015977,2]
[338652123,1726848640105,-500.0,0.00015977,2]
[338652124,1726848640115,-500.0,0.00015977,2]
[338652125,1726848640125,-500.0,0.00015977,2]
[338652126,1726848640136,-500.0,0.00015977,2]
[338652127,1726848640146,-500.0,0.00015977,2]
[338652128,1726848640156,-500.0,0.00015977,2]
[338652129,1726848640166,-1143.91,0.00015977,2]
[338652131,1726848640175,-500.0,0.00015977,2]
[338652133,1726848640185,-500.0,0.00015977,2]
[338652135,1726848640195,-500.0,0.00015977,2]
[338652137,1726848640204,-500.0,0.00015978,2]
[338652139,1726848640214,-1479.2,0.00015978,2]
[338652141,1726848640223,-500.0,0.00015978,2]
[338652143,1726848640234,-500.0,0.00015978,2]
[338652144,1726848640243,-500.0,0.00015978,2]
[338652145,1726848640253,-422.05,0.00015978,2]
[338652146,1726848640262,-500.0,0.00015978,2]
[338652147,1726848640271,-500.0,0.00015978,2]
[338652148,1726848640281,-276.72001185,0.00015978,2]
[338652149,1726848640290,-984.4,0.00015978,2]
[338652150,1726848640301,-500.0,0.00015978,2]
[338652151,1726848640311,-248.01,0.00015978,2]
[338652152,1726848640320,-500.0,0.00015978,2]
[338652153,1726848640330,-3398.47421601,0.00015979,2]
[338652154,1726848640340,-4262.25259293,0.00015979,2]
[338652155,1726848640349,-606.01,0.00015989,2]
[338652156,1726848640359,-500.0,0.00015989,2]
[338652157,1726848640369,-651.33,0.00015989,2]
[338652158,1726848640379,-574.27,0.00015989,2]
[338652159,1726848640388,-500.0,0.00015989,2]
[338652160,1726848640398,-500.0,0.00015989,2]
[338652161,1726848640409,-500.0,0.00015989,2]
[338652162,1726848640419,-500.0,0.00015989,2]
[338652163,1726848640429,-882.69,0.00015989,2]
[338652164,1726848640438,-500.0,0.00015989,2]
[338652165,1726848640448,-500.0,0.00015989,2]
[338652166,1726848640458,-500.0,0.00015989,2]
[338652167,1726848640468,-558.61,0.00015989,2]
[338652168,1726848640477,-535.71,0.00015989,2]
[338652169,1726848640493,-400.07004362,0.00015989,2]
[338652170,1726848640507,-500.0,0.00015989,2]
[338652171,1726848640517,-500.0,0.00015989,2]
[338652172,1726848640527,-500.0,0.00015989,2]
[338652173,1726848640537,-500.0,0.00015989,2]
[338652174,1726848640548,-639.27,0.00015989,2]
[338652175,1726848640558,-500.0,0.00015989,2]
[338652176,1726848640569,-500.0,0.00015989,2]
[338652177,1726848640579,-500.0,0.00015989,2]
[338652178,1726848640589,-500.0,0.00015989,2]
[338652179,1726848640598,-500.0,0.00015989,2]
[338652180,1726848640608,-500.0,0.00015989,2]
[338652181,1726848640618,-500.0,0.00015989,2]
[338652182,1726848640628,-500.0,0.00015989,2]
[338652183,1726848640637,-500.0,0.00015989,2]
[338652184,1726848640648,-500.0,0.00015989,2]
[338652185,1726848640659,-500.0,0.00015989,2]
[338652186,1726848640668,-500.0,0.00015989,2]
[338652187,1726848640678,-237.71209,0.00016,2]
[338652188,1726848640688,-1000.0,0.00016199,2]
[338652189,1726848640698,-195.70785095,0.00016208,2]
[338652190,1726848640707,-3398.47421601,0.00016241,2]
[338652191,1726848640717,-4262.25259293,0.00016241,2]
[338652192,1726848640727,-1589.08268784,0.00016249,2]
[338652193,1726848640736,-646.66,0.0001625,2]
[338652194,1726848640746,-2118.5,0.0001625,2]
[338652195,1726848640756,-500.0,0.0001625,2]
[338652196,1726848640766,-544.7,0.0001625,2]
[338652197,1726848640776,-740.22,0.0001625,2]
[338652198,1726848640785,-500.0,0.0001625,2]
[338652199,1726848640794,-500.0,0.0001625,2]
[338652200,1726848640804,-45822.37941395,0.00016251,2]
[338652201,1726848640823,-6321.5,0.00016251,2]
[338652209,1726848751474,200.0,0.00018261,120]
[338652211,1726848997282,-1182.93,0.000199,31]
[338652212,1726848997307,-1182.93,0.000199,31]
[338652213,1726848997330,-1182.93,0.000199,31]
[338652214,1726848997353,-1182.93,0.000199,31]
[338652215,1726848997376,-1182.93,0.000199,31]
[338652216,1726848997400,-1182.93,0.000199,31]
[338652217,1726848997423,-1182.93,0.000199,31]
[338652218,1726848997447,-1182.93,0.000199,31]
[338652219,1726848997470,-1182.93,0.000199,31]
[338652220,1726848997493,-1182.93,0.000199,31]
[338652221,1726848997515,-1182.93,0.000199,31]
[338652222,1726848997538,-1182.93,0.000199,31]
[338652223,1726848997561,-1182.93,0.000199,31]
[338652224,1726848997583,-1182.93,0.000199,31]
[338652225,1726848997606,-1182.93,0.000199,31]
[338652226,1726848997628,-1182.93,0.000199,31]
[338652227,1726848997730,-500.0,0.0001792,30]
[338652228,1726848997751,-500.0,0.0001792,30]
[338652229,1726848997772,-64.97159885,0.0001792,30]
[338652230,1726848997940,-544.0,0.0002,120]
[338652231,1726848997970,-200.0,0.00020285,120]
[338652232,1726848998008,-500.0,0.00021,120]
[338652233,1726848998045,-1182.93,0.000216,31]
[338652234,1726848998070,-1182.93,0.000216,31]
[338652235,1726848998094,-1182.93,0.000216,31]
[338652236,1726848998118,-1182.93,0.000216,31]
[338652237,1726848998145,-1182.93,0.000216,31]
[338652238,1726848998169,-1182.93,0.000216,31]
[338652239,1726848998197,-1182.93,0.000216,31]
[338652240,1726848998221,-1182.93,0.000216,31]
[338652241,1726848998247,-1182.93,0.000216,31]
[338652242,1726848998272,-1182.93,0.000216,31]
[338652243,1726848998296,-1182.93,0.000216,31]
[338652244,1726848998322,-1182.93,0.000216,31]
[338652245,1726848998347,-1182.93,0.000216,31]
[338652246,1726848998371,-1182.93,0.000216,31]
[338652247,1726848998395,-1182.93,0.000216,31]
[338652248,1726848998420,-1182.93,0.000216,31]
[338652249,1726848998446,-1182.93,0.000216,31]
[338652250,1726848998470,-1182.93,0.000216,31]
[338652251,1726848998494,-1182.93,0.000216,31]
[338652252,1726848998518,-1182.93,0.000216,31]
[338652253,1726848998543,-1182.93,0.000216,31]
[338652254,1726848998570,-1182.93,0.000216,31]
[338652255,1726848998593,-1121.86,0.000216,31]
[338652256,1726848998794,-61.07,0.000216,31]
[338652257,1726848998820,-1182.93,0.000216,31]
[338652258,1726848998857,-500.0,0.00022,120]
[338652259,1726848998890,-1000.0,0.00023,120]
[338652260,1726848998912,-1111.0,0.00023233,120]
[338652261,1726848998938,-1182.93,0.000233,31]
[338652262,1726848998963,-1182.93,0.000233,31]
[338652263,1726848998989,-1182.93,0.000233,31]
[338652264,1726848999012,-1182.93,0.000233,31]
[338652265,1726848999038,-1182.93,0.000233,31]
[338652266,1726848999063,-1182.93,0.000233,31]
[338652267,1726848999087,-1182.93,0.000233,31]
[338652268,1726848999113,-1182.93,0.000233,31]
[338652269,1726848999139,-1182.93,0.000233,31]
[338652270,1726848999163,-1182.93,0.000233,31]
[338652271,1726848999188,-1182.93,0.000233,31]
[338652272,1726848999214,-1182.93,0.000233,31]
[338652273,1726848999241,-1182.93,0.000233,31]
[338652274,1726848999266,-1182.93,0.000233,31]
[338652275,1726848999288,-1182.93,0.000233,31]
[338652276,1726848999489,-1182.93,0.000233,31]
[338652277,1726848999516,-1182.93,0.000233,31]
[338652278,1726848999542,-1182.93,0.000233,31]
[338652279,1726848999567,-1182.93,0.000233,31]
[338652280,1726848999592,-1182.93,0.000233,31]
[338652281,1726848999618,-876.72,0.000233,31]
[338652282,1726848999726,-435.02840115,0.0001792,30]
[338652283,1726848999748,-64.97159885,0.0001792,30]
[338652284,1726848999970,-4004.58422309,0.00024,60]
[338652285,1726849000083,-435.02840115,0.0001792,30]
[338652286,1726849000106,-559.73067397,0.0001792,30]
[338652287,1726849000130,-503.32601021,0.0001792,30]
[338652288,1726849000304,-500.0,0.00019911,30]
[338652289,1726849000326,-500.0,0.00019911,30]
[338652290,1726849000348,-500.0,0.00019911,30]
[338652291,1726849000369,-500.0,0.00019911,30]
[338652292,1726849000391,-500.0,0.00019911,30]
[338652293,1726849000413,-500.0,0.00019911,30]
[338652294,1726849000436,-500.4394349,0.00019911,30]
[338652295,1726849000823,-285.84089454,0.00021,30]
[338652296,1726849001381,-306.21,0.000233,31]
[338652297,1726849001406,-1182.93,0.000233,31]
[338652298,1726849001435,-1182.93,0.000233,31]
[338652299,1726849001458,-1182.93,0.000233,31]
[338652300,1726849001482,-500.0,0.00024,120]
[338652301,1726849001505,-471.0,0.00024,120]
[338652302,1726849001530,-500.0,0.00024658,60]
[338652305,1726849273953,426.24,0.000233,31]
[338652306,1726849274013,426.24,0.000233,31]
[338652307,1726849274048,426.24,0.000233,31]
[338652308,1726849274079,426.24,0.000233,31]
[338652309,1726849274140,151.62716444,0.000233,31]
[338652310,1726849375919,500.0,0.00023233,120]
[338652311,1726849444129,1000.0,0.00023233,120]
[338652319,1726849719242,111.0,0.00018703,120]
[338652320,1726849719264,200.0,0.00018703,120]
[338652321,1726849719293,38.98835764,0.00018703,120]
[338652333,1726849832235,-570.68363619,0.00014483,2]
[338652336,1726849833102,-269.02124341,0.00014483,2]
[338652351,1726849838285,-3083.1172428,0.00014483,2]
[338652353,1726849838295,-170.889892,0.00014724,2]
[338652355,1726849838305,-300.0,0.00014869,2]
[338652357,1726849838314,-300.0,0.00014869,2]
[338652359,1726849838323,-1543.34817296,0.0001487,2]
[338652368,1726849838399,-7464.65182704,0.0001487,2]
[338652371,1726849838413,-170.889892,0.00014979,2]
[338652373,1726849838422,-170.889892,0.00015235,2]
[338652375,1726849838433,-153.0,0.00015478,2]
[338652377,1726849838443,-153.0,0.00015478,2]
[338652378,1726849838452,-153.0,0.00015478,2]
[338652379,1726849838463,-153.0,0.00015478,2]
[338652380,1726849838476,-170.889892,0.00015491,2]
[338652381,1726849838486,-153.0,0.00015564,2]
[338652382,1726849838496,-153.0,0.00015564,2]
[338652383,1726849838505,-153.0,0.00015564,2]
[338652384,1726849838515,-306.0,0.00015564,2]
[338652385,1726849838524,-153.0,0.00015678,2]
[338652386,1726849838534,-416.8818214,0.00015678,2]
[338652387,1726849838544,-306.0,0.00015678,2]
[338652388,1726849838554,-306.4082058,0.00015678,2]
[338652389,1726849838565,-153.0,0.00015678,2]
[338652390,1726849838574,-153.0,0.00015678,2]
[338652391,1726849838585,-3701.97117073,0.00015854,2]
[338652392,1726849838595,-354.5028304,0.00015855,2]
[338652393,1726849838604,-68873.23754818,0.00015864,2]
[338652394,1726849838614,-682.23,0.00015873,2]
[338652395,1726849838624,-500.0,0.00015873,2]
[338652396,1726849838633,-500.0,0.00015873,2]
[338652397,1726849838643,-574.66,0.00015873,2]
[338652398,1726849838654,-500.0,0.00015873,2]
[338652399,1726849838668,-54541.23,0.00015873,2]
[338652400,1726849838678,-265.4551109,0.00015874,2]
[338652401,1726849838688,-597.48,0.00015874,2]
[338652402,1726849838698,-2235.03,0.00015874,2]
[338652403,1726849838709,-500.0,0.00015874,2]
[338652404,1726849838721,-500.0,0.00015874,2]
[338652405,1726849838731,-500.0,0.00015874,2]
[338652406,1726849838742,-500.0,0.00015874,2]
[338652407,1726849838753,-476.64480883,0.00015874,2]
[338652408,1726849838763,-500.0,0.00015874,2]
[338652409,1726849838773,-500.0,0.00015874,2]
[338652410,1726849838782,-500.0,0.00015874,2]
[338652411,1726849838791,-306.46268069,0.00015874,2]
[338652412,1726849838800,-780.94,0.00015874,2]
[338652413,1726849838810,-500.0,0.00015874,2]
[338652414,1726849838820,-500.0,0.00015874,2]
[338652415,1726849838830,-500.0,0.00015874,2]
[338652416,1726849838841,-500.0,0.00015874,2]
[338652417,1726849838852,-507.70425239,0.00015874,2]
[338652418,1726849838861,-536.82746517,0.00015874,2]
[338652419,1726849838870,-500.0,0.00015874,2]
[338652420,1726849838880,-500.0,0.00015874,2]
[338652421,1726849838890,-500.0,0.00015874,2]
[338652422,1726849838899,-500.0,0.00015874,2]
[338652423,1726849838913,-501.20205329,0.00015874,2]
[338652424,1726849838922,-500.0,0.00015874,2]
[338652425,1726849838932,-1000.0,0.00015875,2]
[338652426,1726849838942,-153.0,0.000159,2]
[338652427,1726849838951,-153.0,0.000159,2]
[338652428,1726849838961,-153.0,0.000159,2]
[338652429,1726849838970,-153.0,0.000159,2]
[338652430,1726849838979,-153.0,0.000159,2]
[338652431,1726849838990,-153.0,0.000159,2]
[338652432,1726849839000,-153.0,0.000159,2]
[338652433,1726849839009,-153.0,0.000159,2]
[338652434,1726849839018,-153.0,0.000159,2]
[338652435,1726849839027,-153.0,0.000159,2]
[338652436,1726849839037,-153.0,0.000159,2]
[338652437,1726849839046,-5000.0,0.000159,2]
[338652438,1726849839055,-150.0,0.00015919,2]
[338652439,1726849839064,-500.0,0.00015953,2]
[338652440,1726849839073,-500.0,0.00015953,2]
[338652441,1726849839082,-500.0,0.00015953,2]
[338652442,1726849839094,-500.0,0.00015954,2]
[338652443,1726849839105,-254.88920494,0.00015954,2]
[338652444,1726849839116,-500.0,0.00015954,2]
[338652445,1726849839127,-500.0,0.00015954,2]
[338652446,1726849839138,-500.0,0.00015954,2]
[338652447,1726849839147,-533.7741723,0.00015954,2]
[338652448,1726849839161,-500.0,0.00015954,2]
[338652449,1726849839170,-70820.5519928,0.00015954,2]
[338652450,1726849839180,-15977.219181,0.00015954,2]
[338652451,1726849839190,-500.0,0.00015954,2]
[338652452,1726849839199,-500.0,0.00015954,2]
[338652453,1726849839208,-500.0,0.00015955,2]
[338652454,1726849839217,-500.0,0.00015955,2]
[338652455,1726849839226,-500.0,0.00015955,2]
[338652456,1726849839236,-500.0,0.00015955,2]
[338652457,1726849839247,-301.24330689,0.00015955,2]
[338652458,1726849839257,-500.0,0.00015955,2]
[338652459,1726849839267,-570.86277476,0.00015955,2]
[338652460,1726849839277,-181.40874989,0.00015955,2]
[338652461,1726849839287,-500.0,0.00015955,2]
[338652462,1726849839296,-500.0,0.00015955,2]
[338652463,1726849839305,-500.0,0.00015955,2]
[338652464,1726849839315,-500.0,0.00015955,2]
[338652465,1726849839325,-500.0,0.00015955,2]
[338652466,1726849839335,-500.0,0.00015955,2]
[338652467,1726849839346,-500.0,0.00015955,2]
[338652468,1726849839357,-500.0,0.00015955,2]
[338652469,1726849839366,-500.0,0.00015955,2]
[338652470,1726849839375,-573.00506109,0.00015955,2]
[338652471,1726849839388,-500.0,0.00015955,2]
[338652472,1726849839397,-500.0,0.00015955,2]
[338652473,1726849839409,-500.0,0.00015955,2]
[338652474,1726849839422,-35410.2759964,0.00015955,2]
[338652475,1726849839433,-7988.6095905,0.00015955,2]
[338652476,1726849839443,-500.0,0.00015955,2]
[338652477,1726849839453,-460.883219,0.00015955,2]
[338652478,1726849839464,-53115.4139946,0.00015955,2]
[338652479,1726849839473,-11982.9143858,0.00015955,2]
[338652480,1726849839484,-53115.4139946,0.00015956,2]
[338652481,1726849839494,-11982.9143858,0.00015956,2]
[338652482,1726849839503,-8043.55,0.00015963,2]
[338652483,1726849839513,-500.0,0.00015963,2]
[338652484,1726849839522,-500.0,0.00015963,2]
[338652485,1726849839533,-186.9040059,0.00015963,2]
[338652486,1726849839544,-500.0,0.00015963,2]
[338652487,1726849839555,-502.16934456,0.00015963,2]
[338652488,1726849839564,-500.0,0.00015963,2]
[338652489,1726849839573,-500.0,0.00015963,2]
[338652490,1726849839582,-500.0,0.00015963,2]
[338652491,1726849839592,-523.43,0.00015963,2]
[338652492,1726849839603,-1254.49,0.00015963,2]
[338652493,1726849839612,-500.0,0.00015963,2]
[338652494,1726849839622,-500.0,0.00015963,2]
[338652495,1726849839634,-500.0,0.00015963,2]
[338652496,1726849839644,-500.0,0.00015963,2]
[338652497,1726849839657,-500.0,0.00015963,2]
[338652498,1726849839666,-500.0,0.00015964,2]
[338652499,1726849839675,-500.0,0.00015964,2]
[338652500,1726849839684,-500.0,0.00015964,2]
[338652501,1726849839693,-500.0,0.00015964,2]
[338652502,1726849839702,-500.0,0.00015964,2]
[338652503,1726849839712,-500.0,0.00015964,2]
[338652504,1726849839722,-500.0,0.00015964,2]
[338652505,1726849839731,-500.0,0.00015964,2]
[338652508,1726849839740,-500.0,0.00015964,2]
[338652511,1726849839750,-360.44496563,0.00015964,2]
[338652513,1726849839759,-518.72614352,0.00015964,2]
[338652514,1726849839767,-615.47,0.00015964,2]
[338652516,1726849839776,-555.96,0.00015964,2]
[338652517,1726849839786,-271.51439496,0.00015964,2]
[338652518,1726849839796,-500.0,0.00015964,2]
[338652519,1726849839805,-500.0,0.00015964,2]
[338652520,1726849839814,-157.59542889,0.00015965,2]
[338652522,1726849839823,-500.0,0.00015965,2]
[338652523,1726849839832,-500.90346161,0.00015965,2]
[338652524,1726849839841,-500.0,0.00015965,2]
[338652526,1726849839850,-230.17,0.00015965,2]
[338652529,1726849839860,-169.33,0.00015965,2]
[338652531,1726849839869,-500.0,0.00015965,2]
[338652533,1726849839878,-500.0,0.00015965,2]
[338652536,1726849839888,-500.0,0.00015965,2]
[338652540,1726849839899,-500.0,0.00015965,2]
[338652541,1726849839909,-500.0,0.00015965,2]
[338652544,1726849839919,-500.0,0.00015965,2]
[338652546,1726849839928,-500.0,0.00015965,2]
[338652548,1726849839937,-2013.89,0.00015965,2]
[338652550,1726849839946,-500.0,0.00015965,2]
[338652553,1726849839955,-243.23679135,0.00015965,2]
[338652556,1726849839964,-500.0,0.00015965,2]
[338652559,1726849839973,-334.67906808,0.00015965,2]
[338652561,1726849839983,-508.57763161,0.00015965,2]
[338652563,1726849839992,-500.0,0.00015965,2]
[338652565,1726849840001,-500.0,0.00015965,2]
[338652566,1726849840011,-500.0,0.00015965,2]
[338652567,1726849840020,-500.0,0.00015965,2]
[338652568,1726849840030,-348.53,0.00015965,2]
[338652569,1726849840039,-500.0,0.00015965,2]
[338652571,1726849840048,-500.0,0.00015965,2]
[338652573,1726849840057,-500.0,0.00015965,2]
[338652574,1726849840067,-500.0,0.00015965,2]
[338652575,1726849840076,-500.0,0.00015965,2]
[338652576,1726849840086,-500.0,0.00015965,2]
[338652577,1726849840096,-500.0,0.00015965,2]
[338652578,1726849840105,-500.0,0.00015965,2]
[338652580,1726849840114,-500.0,0.00015965,2]
[338652581,1726849840123,-500.0,0.00015965,2]
[338652582,1726849840133,-500.0,0.00015965,2]
[338652583,1726849840144,-669.37,0.00015965,2]
[338652584,1726849840153,-711.78,0.00015965,2]
[338652585,1726849840163,-500.0,0.00015965,2]
[338652587,1726849840173,-500.0,0.00015965,2]
[338652589,1726849840182,-500.0,0.00015965,2]
[338652591,1726849840192,-500.0,0.00015965,2]
[338652592,1726849840202,-500.0,0.00015965,2]
[338652594,1726849840211,-500.0,0.00015965,2]
[338652595,1726849840221,-1048.35,0.00015965,2]
[338652596,1726849840230,-500.0,0.00015965,2]
[338652597,1726849840240,-500.0,0.00015965,2]
[338652598,1726849840249,-500.0,0.00015965,2]
[338652599,1726849840259,-459.2973992,0.00015965,2]
[338652600,1726849840267,-500.0,0.00015965,2]
[338652601,1726849840277,-500.0,0.00015965,2]
[338652603,1726849840287,-500.0,0.00015965,2]
[338652604,1726849840297,-500.0,0.00015965,2]
[338652605,1726849840306,-500.0,0.00015965,2]
[338652606,1726849840315,-707.82,0.00015965,2]
[338652607,1726849840325,-500.0,0.00015965,2]
[338652608,1726849840333,-500.0,0.00015965,2]
[338652609,1726849840342,-500.0,0.00015965,2]
[338652610,1726849840352,-713.32,0.00015965,2]
[338652611,1726849840362,-500.0,0.00015965,2]
[338652612,1726849840372,-500.0,0.00015965,2]
[338652613,1726849840381,-500.0,0.00015965,2]
[338652614,1726849840395,-486.39956229,0.00015965,2]
[338652615,1726849840406,-500.0,0.00015965,2]
[338652616,1726849840415,-500.0,0.00015965,2]
[338652617,1726849840424,-500.0,0.00015965,2]
[338652618,1726849840434,-500.0,0.00015965,2]
[338652619,1726849840444,-500.0,0.00015965,2]
[338652620,1726849840453,-512.42,0.00015965,2]
[338652621,1726849840463,-500.0,0.00015965,2]
[338652622,1726849840473,-1533.92,0.00015965,2]
[338652624,1726849840482,-500.0,0.00015965,2]
[338652625,1726849840492,-500.0,0.00015965,2]
[338652626,1726849840502,-835.97,0.00015965,2]
[338652627,1726849840511,-500.0,0.00015965,2]
[338652628,1726849840520,-500.0,0.00015965,2]
[338652629,1726849840529,-719.41,0.00015965,2]
[338652630,1726849840538,-500.0,0.00015965,2]
[338652631,1726849840547,-500.0,0.00015965,2]
[338652632,1726849840557,-592.83,0.00015965,2]
[338652633,1726849840566,-500.0,0.00015965,2]
[338652634,1726849840575,-500.0,0.00015965,2]
[338652635,1726849840584,-500.0,0.00015965,2]
[338652636,1726849840594,-500.0,0.00015965,2]
[338652637,1726849840603,-500.0,0.00015965,2]
[338652638,1726849840613,-526.55,0.00015965,2]
[338652639,1726849840622,-500.0,0.00015965,2]
[338652640,1726849840632,-500.0,0.00015965,2]
[338652641,1726849840642,-612.57,0.00015965,2]
[338652642,1726849840651,-500.0,0.00015965,2]
[338652643,1726849840662,-500.0,0.00015965,2]
[338652644,1726849840671,-500.0,0.00015965,2]
[338652645,1726849840680,-500.0,0.00015965,2]
[338652646,1726849840689,-500.0,0.00015965,2]
[338652647,1726849840700,-500.0,0.00015965,2]
[338652648,1726849840709,-500.0,0.00015965,2]
[338652649,1726849840718,-500.0,0.00015965,2]
[338652650,1726849840728,-500.0,0.00015965,2]
[338652651,1726849840737,-500.0,0.00015965,2]
[338652652,1726849840746,-500.0,0.00015965,2]
[338652653,1726849840756,-500.0,0.00015965,2]
[338652654,1726849840765,-504.36852465,0.00015965,2]
[338652655,1726849840774,-500.0,0.00015965,2]
[338652656,1726849840783,-500.0,0.00015965,2]
[338652657,1726849840792,-500.0,0.00015965,2]
[338652658,1726849840801,-500.0,0.00015965,2]
[338652659,1726849840810,-501.12488872,0.00015965,2]
[338652660,1726849840819,-276.444829,0.00015965,2]
[338652661,1726849840828,-500.0,0.00015965,2]
[338652662,1726849840837,-500.0,0.00015965,2]
[338652663,1726849840846,-500.0,0.00015965,2]
[338652664,1726849840855,-500.0,0.00015965,2]
[338652665,1726849840864,-151.0,0.00015965,2]
[338652666,1726849840874,-500.0,0.00015965,2]
[338652667,1726849840883,-35410.2759964,0.00015965,2]
[338652668,1726849840892,-7988.6095905,0.00015965,2]
[338652669,1726849840901,-17705.1379982,0.00015966,2]
[338652670,1726849840912,-3994.30479525,0.00015966,2]
[338652671,1726849840921,-151.0,0.00015966,2]
[338652672,1726849840930,-151.0,0.00015966,2]
[338652673,1726849840940,-151.0,0.00015966,2]
[338652674,1726849840949,-151.0,0.00015966,2]
[338652675,1726849840959,-151.0,0.00015966,2]
[338652676,1726849840968,-151.0,0.00015966,2]